bitfinex/quotes_BTCUSD_20250917
["timestamp","ask_amount","ask_price","bid_price","bid_amount"]
[1758139222441,0.00250001,115760.0,115750.0,1.29680595]
[1758139224011,0.00250001,115760.0,115750.0,1.03926196]
[1758139224852,0.00250001,115760.0,115750.0,1.12453163]
[1758139225100,0.00250001,115760.0,115750.0,1.52453163]
[1758139225965,1e-08,115760.0,115750.0,1.55368353]
[1758139226177,1e-08,115760.0,115750.0,1.55768353]
[1758139226882,1e-08,115760.0,115750.0,1.55408353]
[1758139228904,1e-08,115760.0,115750.0,1.14023176]
[1758139229118,1e-08,115760.0,115750.0,1.55408353]
[1758139229482,1e-08,115760.0,115750.0,1.14023176]
[1758139229712,1e-08,115760.0,115750.0,1.55408353]
[1758139236571,1e-08,115760.0,115750.0,1.14023176]
[1758139236770,1e-08,115760.0,115750.0,1.55408353]
[1758139237355,1e-08,115760.0,115750.0,1.14023176]
[1758139237559,1e-08,115760.0,115750.0,1.55408353]
[1758139238350,1e-08,115760.0,115750.0,2.0179353]
[1758139238796,1e-08,115760.0,115750.0,1.60408353]
[1758139239880,1e-08,115760.0,115750.0,2.01762686]
[1758139245127,1e-08,115760.0,115750.0,1.80225741]
[1758139245340,1e-08,115760.0,115750.0,1.71698774]
[1758139246450,1e-08,115760.0,115750.0,2.13068529]
[1758139248226,1e-08,115760.0,115750.0,1.30329019]
[1758139248453,1e-08,115760.0,115750.0,2.13068529]
[1758139248942,1e-08,115760.0,115750.0,2.13064529]
[1758139249400,1e-08,115760.0,115750.0,1.71694774]
[1758139249849,1e-08,115760.0,115750.0,1.30325019]
[1758139250061,1e-08,115760.0,115750.0,1.71694774]
[1758139250694,1e-08,115760.0,115750.0,1.39657019]
[1758139250917,1e-08,115760.0,115750.0,1.81026774]
[1758139251842,1e-08,115760.0,115750.0,2.22396529]
[1758139252992,1e-08,115760.0,115750.0,2.33938686]
[1758139254065,1e-08,115760.0,115750.0,2.75308441]
[1758139254493,1e-08,115760.0,115750.0,2.80308441]
[1758139255247,1e-08,115760.0,115750.0,2.85308441]
[1758139257394,1e-08,115760.0,115750.0,2.84908441]
[1758139257843,1e-08,115760.0,115750.0,2.85508441]
[1758139258055,1e-08,115760.0,115750.0,2.85500441]
[1758139259126,1e-08,115760.0,115750.0,2.57664441]
[1758139259332,1e-08,115760.0,115750.0,2.85500441]
[1758139260952,1e-08,115760.0,115750.0,4.09609706]
[1758139261769,1e-08,115760.0,115750.0,2.85496441]
[1758139263036,1e-08,115760.0,115750.0,2.57664441]
[1758139263254,1e-08,115760.0,115750.0,2.85496441]
[1758139264107,1e-08,115760.0,115750.0,4.09605706]
[1758139264322,1e-08,115760.0,115750.0,4.25993082]
[1758139264730,1e-08,115760.0,115750.0,4.30993082]
[1758139266016,1e-08,115800.0,115790.0,0.92642403]
[1758139266225,0.00014098,115800.0,115790.0,1.84188337]
[1758139266435,1e-08,115800.0,115790.0,2.69943037]
[1758139266646,1e-08,115800.0,115790.0,2.74943037]
[1758139266860,1e-08,115800.0,115790.0,3.17536983]
[1758139267074,1e-08,115800.0,115790.0,2.76167228]
[1758139267254,1e-08,115800.0,115790.0,2.76267228]
[1758139268631,1e-08,115800.0,115790.0,3.17636983]
[1758139268764,1e-08,115800.0,115790.0,2.76267228]
[1758139269423,1e-08,115800.0,115790.0,3.17636983]
[1758139271294,1e-08,115800.0,115790.0,3.24209495]
[1758139271469,1e-08,115800.0,115790.0,3.29209495]
[1758139271674,1e-08,115800.0,115790.0,4.5331876]
[1758139272263,1e-08,115800.0,115790.0,3.29209495]
[1758139272460,1e-08,115800.0,115790.0,4.5331876]
[1758139272917,1e-08,115800.0,115790.0,3.29209495]
[1758139273523,1e-08,115800.0,115790.0,4.5331876]
[1758139276484,1e-08,115800.0,115790.0,4.5831876]
[1758139280518,1e-08,115800.0,115790.0,4.5821876]
[1758139280952,1e-08,115800.0,115790.0,2.1000023]
[1758139282138,1e-08,115800.0,115790.0,2.1910123]
[1758139284926,1e-08,115800.0,115790.0,2.4545123]
[1758139285372,1e-08,115800.0,115790.0,2.8276723]
[1758139289567,1e-08,115800.0,115790.0,2.7774323]
[1758139289772,1e-08,115800.0,115790.0,2.1448823]
[1758139289974,1e-08,115800.0,115790.0,2.3734823]
[1758139292453,1e-08,115800.0,115790.0,2.4234823]
[1758139293138,1e-08,115800.0,115790.0,2.3734823]
[1758139293554,1e-08,115800.0,115790.0,2.4234823]
[1758139293760,1e-08,115800.0,115790.0,2.0834823]
[1758139293928,1e-08,115800.0,115790.0,2.0334823]
[1758139294127,1e-08,115800.0,115790.0,1.7103223]
[1758139294341,1e-08,115800.0,115790.0,2.0503223]
[1758139299773,1e-08,115800.0,115790.0,1.6717223]
[1758139299994,1e-08,115800.0,115790.0,1.9506023]
[1758139301102,1e-08,115800.0,115790.0,2.36415998]
[1758139301923,1e-08,115800.0,115790.0,2.33400808]
[1758139302317,0.0267,115810.0,115800.0,0.51271157]
[1758139302494,0.0267,115810.0,115800.0,0.87670124]
[1758139302699,0.0287,115810.0,115800.0,0.87670124]
[1758139302976,0.0287,115810.0,115800.0,1.27670124]
[1758139303142,0.41355768,115830.0,115820.0,0.17268174]
[1758139303379,0.5070317,115830.0,115820.0,0.45140174]
[1758139303587,0.5337317,115830.0,115820.0,0.45140174]
[1758139303943,0.5337317,115830.0,115820.0,0.46602646]
[1758139304576,0.53373112,115830.0,115820.0,0.46602646]
[1758139305166,0.12017344,115830.0,115820.0,0.46602646]
[1758139305370,0.12017344,115830.0,115820.0,0.46802646]
[1758139305573,0.53373112,115830.0,115820.0,0.47679813]
[1758139305996,0.53373112,115830.0,115820.0,0.47479813]
[1758139306414,0.53373112,115830.0,115820.0,0.46017341]
[1758139309446,0.52766848,115830.0,115820.0,0.46017341]
[1758139314474,0.52766848,115830.0,115820.0,0.48611358]
[1758139317497,0.52766848,115830.0,115820.0,0.20739358]
[1758139319183,0.1141108,115830.0,115820.0,0.20739358]
[1758139319393,0.52866848,115830.0,115820.0,0.27334527]
[1758139321722,0.1151108,115830.0,115820.0,0.27334527]
[1758139321927,0.52866848,115830.0,115820.0,0.27334527]
[1758139322444,0.52866848,115830.0,115820.0,0.20739358]
[1758139324086,0.1151108,115830.0,115820.0,0.20739358]
[1758139324290,0.52866848,115830.0,115820.0,0.20739358]
[1758139328635,0.1151108,115830.0,115820.0,0.20739358]
[1758139328840,0.52866848,115830.0,115820.0,0.20739358]
[1758139330512,0.50513848,115830.0,115820.0,0.20739358]
[1758139330868,0.52867848,115830.0,115820.0,0.20739358]
[1758139331306,0.80695848,115830.0,115820.0,0.20739358]
[1758139332372,0.3934008,115830.0,115820.0,0.20739358]
[1758139332561,0.80695848,115830.0,115820.0,0.20739358]
[1758139333968,0.80695848,115830.0,115820.0,0.27334527]
[1758139334771,0.80695848,115830.0,115820.0,0.20739358]
[1758139335173,1.22051616,115830.0,115820.0,0.20739358]
[1758139336278,1.39318299,115830.0,115820.0,0.02594017]
[1758139336485,1.39318299,115830.0,115820.0,0.19862191]
[1758139337121,1.39318299,115830.0,115820.0,0.02594017]
[1758139337538,0.17268174,115820.0,115810.0,0.17268327]
[1758139337739,0.52754735,115820.0,115810.0,0.17268327]
[1758139337946,0.52754735,115820.0,115810.0,0.19862741]
[1758139339132,0.11398967,115820.0,115810.0,0.19862741]
[1758139339361,0.78224735,115820.0,115810.0,0.19862741]
[1758139339541,0.80534835,115820.0,115810.0,0.23747358]
[1758139339959,0.00518,115820.0,115810.0,0.23747358]
[1758139340289,0.41873768,115820.0,115810.0,0.51571358]
[1758139340500,0.02872,115820.0,115810.0,0.51571358]
[1758139340718,0.44227768,115820.0,115810.0,0.51571358]
[1758139341200,0.02872,115820.0,115810.0,0.51571358]
[1758139341403,0.44227768,115820.0,115810.0,0.51571358]
[1758139344013,0.41369881,115830.0,115820.0,0.17268174]
[1758139344235,0.00014113,115830.0,115820.0,0.24152127]
[1758139344464,0.00014113,115830.0,115820.0,0.17268174]
[1758139344676,0.00014113,115830.0,115820.0,0.1986198]
[1758139345312,0.00114113,115830.0,115820.0,0.1986198]
[1758139345521,0.00014113,115830.0,115820.0,0.1986198]
[1758139345663,0.00014113,115830.0,115820.0,0.26745872]
[1758139346083,0.00014113,115830.0,115820.0,0.1986198]
[1758139347520,0.00225113,115830.0,115820.0,0.1986198]
[1758139347743,0.00532113,115830.0,115820.0,0.1986198]
[1758139348350,0.00014113,115830.0,115820.0,0.1986198]
[1758139349074,0.00014113,115830.0,115820.0,0.26396505]
[1758139349282,0.00014113,115830.0,115820.0,0.3393385]
[1758139350401,0.00014113,115830.0,115820.0,0.3403385]
[1758139353315,0.00215113,115830.0,115820.0,0.3403385]
[1758139353448,0.00509113,115830.0,115820.0,0.3403385]
[1758139354549,0.41864881,115830.0,115820.0,0.3403385]
[1758139356752,0.41570881,115830.0,115820.0,0.3403385]
[1758139357392,0.00014113,115830.0,115820.0,0.3403385]
[1758139357596,0.41369881,115830.0,115820.0,0.3403385]
[1758139357848,0.00014113,115830.0,115820.0,0.3403385]
[1758139361215,0.63024242,115870.0,115860.0,0.17262213]
[1758139361216,0.00294,115870.0,115860.0,0.17262213]
[1758139361405,0.10294001,115880.0,115870.0,0.17260723]
[1758139361603,0.63302514,115880.0,115870.0,0.17260723]
[1758139361774,1.04586716,115880.0,115870.0,0.17260723]
[1758139361995,1.04586688,115880.0,115870.0,0.19853637]
[1758139362894,0.21946718,115880.0,115870.0,0.19853637]
[1758139363153,1.04586688,115880.0,115870.0,0.19853637]
[1758139365060,1.04586688,115880.0,115870.0,0.20740272]
[1758139365276,1.04786688,115880.0,115870.0,0.20740272]
[1758139368847,0.17260723,115870.0,115860.0,0.1726176]
[1758139369079,1.19179937,115870.0,115860.0,0.1726176]
[1758139369272,1.21777937,115870.0,115860.0,0.19855172]
[1758139369519,1.3903866,115870.0,115860.0,0.19855172]
[1758139369841,1.1122666,115870.0,115860.0,0.19855172]
[1758139370041,1.3903466,115870.0,115860.0,0.19855172]
[1758139370264,1.3913466,115870.0,115860.0,0.19855172]
[1758139370868,1.21873937,115870.0,115860.0,0.19855172]
[1758139371080,1.3913466,115870.0,115860.0,0.19855172]
[1758139371967,1.3913466,115870.0,115860.0,0.207054]
[1758139372997,1.21873937,115870.0,115860.0,0.207054]
[1758139373464,1.3913466,115870.0,115860.0,0.207054]
[1758139373919,0.5649469,115870.0,115860.0,0.207054]
[1758139374131,1.3913466,115870.0,115860.0,0.207054]
[1758139374328,0.17262213,115860.0,115850.0,0.17263703]
[1758139374543,1.1122815,115860.0,115850.0,0.17263703]
[1758139374750,0.93965937,115860.0,115850.0,0.17263703]
[1758139375202,0.93965937,115860.0,115850.0,0.18115927]
[1758139377947,0.94065937,115860.0,115850.0,0.18115927]
[1758139378179,0.93965937,115860.0,115850.0,0.18115927]
[1758139378954,0.93965937,115860.0,115850.0,0.17263703]
[1758139380263,0.94065937,115860.0,115850.0,0.17263703]
[1758139380478,1.52648135,115860.0,115840.0,0.17260871]
[1758139380631,0.58883198,115860.0,115850.0,0.17263703]
[1758139380809,0.97892165,115860.0,115850.0,0.17263703]
[1758139381804,1.3921215,115860.0,115850.0,0.17263703]
[1758139382207,1.39818216,115860.0,115850.0,0.17263703]
[1758139383306,0.57178246,115860.0,115850.0,0.17263703]
[1758139383531,1.39818216,115860.0,115850.0,0.17263703]
[1758139385108,1.81138201,115860.0,115850.0,0.17263703]
[1758139385753,1.81138201,115860.0,115840.0,0.18113757]
[1758139385960,1.81138201,115860.0,115850.0,0.17263703]
[1758139385961,0.87293264,115860.0,115850.0,0.17263703]
[1758139386170,0.95820231,115860.0,115850.0,0.17263703]
[1758139386494,0.98397231,115860.0,115850.0,0.17263703]
[1758139386710,0.98397231,115860.0,115840.0,0.18113757]
[1758139386907,0.11103967,115850.0,115840.0,0.18113757]
[1758139387137,0.93951937,115850.0,115840.0,0.18113757]
[1758139387357,0.93951937,115850.0,115840.0,0.18075056]
[1758139388731,0.93451937,115850.0,115840.0,0.18075056]
[1758139388940,0.52131952,115850.0,115840.0,0.20752412]
[1758139389798,0.52131952,115850.0,115840.0,0.18075056]
[1758139390775,0.93451937,115850.0,115840.0,0.18075056]
[1758139391019,0.52131952,115850.0,115840.0,0.18075056]
[1758139391979,0.10811967,115850.0,115840.0,0.18075056]
[1758139392400,0.79931952,115850.0,115840.0,0.18075056]
[1758139397347,0.38611967,115850.0,115840.0,0.18075056]
[1758139397542,0.79931952,115850.0,115840.0,0.18075056]
[1758139399792,0.00208,115850.0,115840.0,0.21695198]
[1758139400010,0.28708669,115860.0,115850.0,0.17263703]
[1758139400307,0.80427952,115860.0,115850.0,0.17263703]
[1758139400558,1.21747937,115860.0,115850.0,0.17263703]
[1758139402074,0.80427952,115860.0,115850.0,0.17263703]
[1758139402276,0.80527952,115860.0,115850.0,0.17263703]
[1758139402473,1.21847937,115860.0,115850.0,0.17263703]
[1758139405820,1.19576937,115860.0,115850.0,0.17263703]
[1758139406019,0.69207985,115860.0,115850.0,0.23576779]
[1758139407164,0.69207985,115860.0,115850.0,0.17263703]
[1758139407411,0.001,115860.0,115850.0,0.17263703]
[1758139407773,0.41419985,115860.0,115850.0,0.17263703]
[1758139408438,0.001,115860.0,115850.0,0.17263703]
[1758139408590,0.001,115860.0,115850.0,0.65141784]
[1758139408755,0.001,115860.0,115850.0,0.73668751]
[1758139409200,0.001,115860.0,115850.0,0.76261764]
[1758139409624,0.67879985,115870.0,115860.0,0.17262213]
[1758139410501,0.68393985,115870.0,115860.0,0.17262213]
[1758139410967,0.41833985,115870.0,115860.0,0.17262213]
[1758139411100,0.44104985,115870.0,115860.0,0.17262213]
[1758139412768,0.44204985,115870.0,115860.0,0.22482612]
[1758139417022,0.02885,115870.0,115860.0,0.22482612]
[1758139417223,0.71980985,115870.0,115860.0,0.22482612]
[1758139417704,0.71980985,115870.0,115860.0,0.17262213]
[1758139418263,0.30147,115870.0,115860.0,0.17262213]
[1758139418453,0.71994985,115870.0,115860.0,0.17262213]
[1758139421681,0.69723985,115870.0,115860.0,0.17262213]
[1758139421881,0.72050985,115870.0,115860.0,0.17262213]
[1758139423933,0.72059383,115870.0,115860.0,0.17262213]
[1758139430752,0.69732383,115870.0,115860.0,0.17262213]
[1758139430956,0.72059383,115870.0,115860.0,0.17262213]
[1758139432704,0.69732383,115870.0,115860.0,0.17262213]
[1758139432865,0.72059383,115870.0,115860.0,0.17262213]
[1758139433067,0.69732383,115870.0,115860.0,0.17262213]
[1758139433268,0.72059383,115870.0,115860.0,0.17262213]
[1758139434352,0.72059383,115870.0,115860.0,0.16937313]
[1758139434554,0.72059383,115870.0,115860.0,0.19530328]
[1758139436510,0.30731,115870.0,115860.0,0.19530328]
[1758139436720,0.72059383,115870.0,115860.0,0.19530328]
[1758139440565,0.89927243,115870.0,115860.0,0.19530328]
[1758139440754,1.39782593,115870.0,115860.0,0.19530328]
[1758139441013,0.9845421,115870.0,115860.0,0.16937313]
[1758139441202,0.9845421,115870.0,115860.0,0.1953065]
[1758139442285,0.81193487,115870.0,115860.0,0.1953065]
[1758139442960,0.8058635,115870.0,115860.0,0.1953065]
[1758139443402,0.5281035,115870.0,115860.0,0.1953065]
[1758139443608,0.8055835,115870.0,115860.0,0.1953065]
[1758139444100,0.81165358,115870.0,115860.0,0.1953065]
[1758139444500,0.8055835,115870.0,115860.0,0.1953065]
[1758139444723,0.72031383,115870.0,115860.0,0.1953065]
[1758139450823,0.27848,115870.0,115860.0,0.1953065]
[1758139451038,0.001,115870.0,115860.0,0.1953065]
[1758139451280,0.41625383,115870.0,115860.0,0.4726665]
[1758139451531,0.41934383,115870.0,115860.0,0.4726665]
[1758139452398,0.41934383,115870.0,115860.0,0.1953065]
[1758139452612,0.44223383,115870.0,115860.0,0.1953065]
[1758139453562,0.02895,115870.0,115860.0,0.1953065]
[1758139453769,0.44223383,115870.0,115860.0,0.1953065]
[1758139454815,0.41428383,115870.0,115860.0,0.1953065]
[1758139455234,0.41625383,115870.0,115860.0,0.1953065]
[1758139455430,0.44223383,115870.0,115860.0,0.1953065]
[1758139464961,0.02895,115870.0,115860.0,0.1953065]
[1758139465097,0.44223383,115870.0,115860.0,0.1953065]
[1758139466832,0.00606,115870.0,115860.0,0.1953065]
[1758139467048,0.44223383,115870.0,115860.0,0.1953065]
[1758139467254,0.02895,115870.0,115860.0,0.1953065]
[1758139467472,0.44223383,115870.0,115860.0,0.1953065]
[1758139467681,0.44223383,115870.0,115860.0,0.26617349]
[1758139467903,0.30611,115870.0,115860.0,0.1953065]
[1758139468114,0.71939383,115870.0,115860.0,0.1953065]
[1758139468761,0.30611,115870.0,115860.0,0.1953065]
[1758139468972,0.69341383,115870.0,115860.0,0.1953065]
[1758139469593,0.69144383,115870.0,115860.0,0.1953065]
[1758139470014,0.69650383,115870.0,115860.0,0.1953065]
[1758139472097,0.71939383,115870.0,115860.0,0.1953065]
[1758139479715,0.81073446,115870.0,115860.0,0.1953065]
[1758139483995,1.22419309,115870.0,115860.0,0.1953065]
[1758139487740,0.81082186,115870.0,115860.0,0.1953065]
[1758139491412,0.39745063,115870.0,115860.0,0.1953065]
[1758139491593,1.22419309,115870.0,115860.0,0.1953065]
[1758139492785,1.39680032,115870.0,115860.0,0.1953065]
[1758139493511,1.22419309,115870.0,115860.0,0.1953065]
[1758139494258,1.39680032,115870.0,115860.0,0.1953065]
[1758139494655,1.22419035,115870.0,115860.0,0.1953065]
[1758139498007,1.39679758,115870.0,115860.0,0.1953065]
[1758139498223,1.22419035,115870.0,115860.0,0.1953065]
[1758139499522,1.39679758,115870.0,115860.0,0.1953065]
[1758139500393,1.22419035,115870.0,115860.0,0.1953065]
[1758139501068,1.39679758,115870.0,115860.0,0.1953065]
[1758139501433,1.39679758,115870.0,115860.0,0.1985555]
[1758139502683,1.39679758,115870.0,115860.0,0.02593337]
[1758139502856,1.39679758,115870.0,115860.0,0.1985555]
[1758139503295,1.22419035,115870.0,115860.0,0.1985555]
[1758139503515,1.39679758,115870.0,115860.0,0.1985555]
[1758139504562,1.39679763,115870.0,115860.0,0.02593337]
[1758139504763,1.39679763,115870.0,115850.0,0.17263703]
[1758139504970,0.26691517,115870.0,115860.0,0.17262213]
[1758139505184,0.54363517,115870.0,115860.0,0.17262213]
[1758139505623,0.56922517,115870.0,115860.0,0.17262213]
[1758139506061,1.39596763,115870.0,115860.0,0.17262213]
[1758139507162,0.56922517,115870.0,115860.0,0.17262213]
[1758139507377,1.39596763,115870.0,115860.0,0.17262213]
[1758139507577,1.2233604,115870.0,115860.0,0.17262213]
[1758139507981,1.39596763,115870.0,115860.0,0.17262213]
[1758139509931,1.39596642,115870.0,115860.0,0.17262213]
[1758139512803,1.39596642,115870.0,115850.0,0.19857038]
[1758139513006,0.28946396,115870.0,115860.0,0.17262213]
[1758139513224,0.56610396,115870.0,115860.0,0.17262213]
[1758139513611,0.56914396,115870.0,115860.0,0.17262213]
[1758139514108,1.39588642,115870.0,115860.0,0.17262213]
[1758139515726,0.56914396,115870.0,115860.0,0.17262213]
[1758139515744,1.39588642,115870.0,115860.0,0.17262213]
[1758139517682,1.39588542,115870.0,115860.0,0.17262213]
[1758139517974,1.39588536,115870.0,115850.0,0.19857038]
[1758139518174,1.10334246,115860.0,115850.0,0.19857038]
[1758139518439,1.10638246,115860.0,115850.0,0.19857038]
[1758139518634,1.10853246,115860.0,115850.0,0.19857038]
[1758139520909,1.13108246,115860.0,115850.0,0.19857038]
[1758139521967,0.30434,115860.0,115850.0,0.19857038]
[1758139522427,1.13108246,115860.0,115850.0,0.19857038]
[1758139522646,1.10853246,115860.0,115850.0,0.19857038]
[1758139522854,1.13108246,115860.0,115850.0,0.19857038]
[1758139523271,0.3013,115860.0,115850.0,0.19857038]
[1758139523506,1.13108246,115860.0,115850.0,0.19857038]
[1758139524706,0.11085967,115870.0,115860.0,0.17262213]
[1758139524910,0.7751609,115870.0,115860.0,0.17262213]
[1758139525350,0.98157548,115870.0,115860.0,0.17262213]
[1758139525486,1.39494671,115870.0,115860.0,0.17262213]
[1758139525908,0.39659702,115870.0,115860.0,0.19855432]
[1758139526139,0.80996825,115870.0,115860.0,0.19855432]
[1758139526738,1.39594738,115870.0,115860.0,0.19855432]
[1758139527175,1.38987936,115870.0,115860.0,0.02593219]
[1758139527425,1.39594746,115870.0,115860.0,0.19855432]
[1758139527632,1.39594746,115870.0,115860.0,0.02593219]
[1758139528089,1.39594746,115870.0,115860.0,0.19855432]
[1758139530456,1.39594746,115870.0,115860.0,0.02593219]
[1758139530687,1.39594746,115870.0,115860.0,0.17262213]
[1758139531059,0.17262213,115860.0,115840.0,0.18938315]
[1758139531294,1.13096246,115850.0,115840.0,0.18938315]
[1758139531715,1.13096246,115850.0,115840.0,0.21531837]
[1758139532552,1.13096246,115850.0,115840.0,0.21731837]
[1758139534111,1.38886916,115850.0,115840.0,0.20878951]
[1758139534291,1.38886916,115850.0,115840.0,0.20678951]
[1758139534520,1.21723213,115850.0,115840.0,0.20678951]
[1758139534893,1.38886916,115850.0,115840.0,0.20678951]
[1758139535093,1.38986916,115850.0,115840.0,0.20678951]
[1758139538140,1.38986916,115850.0,115840.0,0.18963736]
[1758139540485,1.38986916,115850.0,115840.0,0.18085429]
[1758139541143,1.38986916,115850.0,115840.0,0.20679155]
[1758139542515,1.38986916,115850.0,115840.0,0.21546901]
[1758139543822,1.38986916,115850.0,115840.0,0.02593726]
[1758139544708,0.17266574,115840.0,115820.0,0.18131582]
[1758139544916,1.10529246,115830.0,115820.0,0.20725489]
[1758139545171,0.71912123,115830.0,115820.0,0.20725489]
[1758139545795,0.89178806,115830.0,115820.0,0.20725489]
[1758139546008,0.89203248,115830.0,115820.0,0.21573673]
[1758139546656,0.71936565,115830.0,115820.0,0.21573673]
[1758139547990,0.71936565,115830.0,115820.0,0.21773673]
[1758139548300,0.39101967,115830.0,115820.0,0.21773673]
[1758139548507,0.80463532,115830.0,115820.0,0.21773673]
[1758139548717,0.97730215,115830.0,115820.0,0.21773673]
[1758139552250,0.97730215,115830.0,115820.0,0.20925489]
[1758139552472,0.97730215,115830.0,115820.0,0.02793907]
[1758139552887,0.97730215,115830.0,115820.0,0.20062081]
[1758139553164,0.97730215,115830.0,115820.0,0.02793907]
[1758139553388,0.97730215,115830.0,115820.0,0.002]
[1758139553846,0.5636865,115830.0,115820.0,0.002]
[1758139554095,0.97730215,115830.0,115820.0,0.002]
[1758139554333,0.97730215,115830.0,115810.0,0.20717536]
[1758139554540,0.11246967,115820.0,115810.0,0.20731649]
[1758139554765,0.36162967,115820.0,115810.0,0.27381454]
[1758139554988,0.36688967,115820.0,115810.0,0.27381454]
[1758139555214,0.39097967,115820.0,115810.0,0.20731649]
[1758139560644,0.97727706,115820.0,115810.0,0.20731649]
[1758139560855,0.97727706,115820.0,115810.0,0.0260846]
[1758139561073,0.97727706,115820.0,115810.0,0.19878125]
[1758139561282,0.97727706,115820.0,115810.0,0.0260846]
[1758139561913,0.97727706,115820.0,115810.0,0.00014113]
[1758139562821,0.56366141,115820.0,115810.0,0.00014113]
[1758139563036,0.97727706,115820.0,115810.0,0.00014113]
[1758139564171,0.97827706,115820.0,115810.0,0.00014113]
[1758139566894,0.97827706,115820.0,115810.0,0.17283778]
[1758139568738,0.97827706,115820.0,115810.0,0.19878338]
[1758139569168,0.97815706,115820.0,115810.0,0.19878338]
[1758139569362,0.98421682,115820.0,115810.0,0.19878338]
[1758139570243,0.37382943,115820.0,115810.0,0.19878338]
[1758139570636,0.57129117,115820.0,115810.0,0.19878338]
[1758139572596,0.98490682,115820.0,115810.0,0.19878338]
[1758139573518,0.98490682,115820.0,115810.0,0.02608673]
[1758139573726,0.98490682,115820.0,115810.0,0.19878338]
[1758139575095,0.98491136,115820.0,115810.0,0.19878338]
[1758139585304,0.57129571,115820.0,115810.0,0.19878338]
[1758139585506,0.98491136,115820.0,115810.0,0.19878338]
[1758139586819,0.57129571,115820.0,115810.0,0.19878338]
[1758139586926,0.98491136,115820.0,115810.0,0.19878338]
[1758139587180,0.97884706,115820.0,115810.0,0.19878338]
[1758139588071,0.98491571,115820.0,115810.0,0.19878338]
[1758139588309,0.81223397,115820.0,115810.0,0.19878338]
[1758139588510,0.98491571,115820.0,115810.0,0.19878338]
[1758139589966,0.98491571,115820.0,115810.0,0.02608673]
[1758139590927,0.98491571,115820.0,115810.0,0.19878338]
[1758139591151,0.97884706,115820.0,115810.0,0.19878338]
[1758139591298,0.98491799,115820.0,115810.0,0.19878338]
[1758139594730,0.98491799,115820.0,115810.0,0.02608673]
[1758139594928,0.98491799,115820.0,115810.0,0.19878338]
[1758139595135,0.87018766,115820.0,115810.0,0.19878338]
[1758139595347,0.87216766,115820.0,115810.0,0.19878338]
[1758139597110,0.70248592,115820.0,115810.0,0.19878338]
[1758139597327,0.87516766,115820.0,115810.0,0.19878338]
[1758139599701,0.87516954,115820.0,115810.0,0.19878338]
[1758139602014,0.26109215,115820.0,115810.0,0.23893593]
[1758139602264,0.87018954,115820.0,115810.0,0.23893593]
[1758139602476,0.87318954,115820.0,115810.0,0.19878338]
[1758139602907,0.87318954,115820.0,115810.0,0.20092338]
[1758139603134,0.87018954,115820.0,115810.0,0.20092338]
[1758139603363,0.87318954,115820.0,115810.0,0.19878338]
[1758139603663,0.00805281,115820.0,115810.0,0.20092338]
[1758139603871,0.00607281,115820.0,115810.0,0.69761415]
[1758139604060,0.27592,115820.0,115810.0,0.2839985]
[1758139605064,0.09628,115840.0,115830.0,0.17266683]
[1758139605262,0.65793296,115840.0,115830.0,0.17480683]
[1758139605877,0.89878167,115840.0,115830.0,0.17480683]
[1758139606251,1.0714336,115840.0,115830.0,0.20074772]
[1758139606809,0.89878167,115840.0,115830.0,0.20074772]
[1758139607010,0.60010167,115840.0,115830.0,0.17480683]
[1758139607275,0.90078167,115840.0,115830.0,0.20074722]
[1758139607599,0.90378167,115840.0,115830.0,0.20074722]
[1758139609537,0.36922103,115840.0,115830.0,0.20074722]
[1758139609784,0.36922103,115840.0,115830.0,0.24157578]
[1758139609785,0.002,115840.0,115830.0,0.24157578]
[1758139609995,0.10000001,115880.0,115870.0,0.17260723]
[1758139610214,0.10606188,115880.0,115870.0,0.62594081]
[1758139610864,0.10606188,115880.0,115870.0,0.66066857]
[1758139611292,0.10620301,115880.0,115870.0,0.24716793]
[1758139611495,0.10720301,115880.0,115870.0,0.62614563]
[1758139612300,0.10114114,115880.0,115870.0,0.62614563]
[1758139613731,0.10114114,115880.0,115870.0,0.21264499]
[1758139615012,0.10114114,115880.0,115870.0,0.18671746]
[1758139615821,0.10114114,115880.0,115870.0,0.21426283]
[1758139617570,0.51464178,115880.0,115870.0,0.21426283]
[1758139617983,0.51464178,115880.0,115870.0,0.18671746]
[1758139618166,0.52066625,115880.0,115870.0,0.18671746]
[1758139621499,0.10716561,115880.0,115870.0,0.6002181]
[1758139621725,0.10716561,115880.0,115870.0,0.18671746]
[1758139621940,0.10716561,115880.0,115870.0,0.6002181]
[1758139622165,0.10716561,115880.0,115870.0,0.18671746]
[1758139622684,0.52066625,115880.0,115870.0,0.18671746]
[1758139623105,0.10716561,115880.0,115870.0,0.18671746]
[1758139624131,0.52066625,115880.0,115870.0,0.18671746]
[1758139624960,0.52066084,115880.0,115870.0,0.18671746]
[1758139625190,0.52066084,115880.0,115870.0,0.27198713]
[1758139627046,0.1071602,115880.0,115870.0,0.27198713]
[1758139627246,0.52066191,115880.0,115870.0,0.27198713]
[1758139627679,0.52066191,115880.0,115870.0,0.18671746]
[1758139630532,0.10716127,115880.0,115870.0,0.18671746]
[1758139630735,0.10716127,115880.0,115870.0,0.6002181]
[1758139630936,0.10716127,115880.0,115870.0,0.18671746]
[1758139631135,0.52066191,115880.0,115870.0,0.18671746]
[1758139631333,0.10716127,115880.0,115870.0,0.27198713]
[1758139631544,0.10716127,115880.0,115870.0,0.68548777]
[1758139631749,0.10716127,115880.0,115870.0,1.02548777]
[1758139631960,0.10716127,115880.0,115870.0,1.05141371]
[1758139633229,0.10716127,115880.0,115870.0,0.63791307]
[1758139633448,0.10716127,115880.0,115870.0,1.05141371]
[1758139633664,0.10616127,115880.0,115870.0,1.16683528]
[1758139633895,0.10616127,115880.0,115870.0,1.16883528]
[1758139634140,0.10616127,115880.0,115870.0,0.75533464]
[1758139634380,0.10616127,115880.0,115870.0,1.16883528]
[1758139634747,0.10616127,115880.0,115870.0,0.75533464]
[1758139635181,0.10617602,115880.0,115870.0,1.16883528]
[1758139635433,0.10617602,115880.0,115870.0,0.75533464]
[1758139635612,0.10617602,115880.0,115870.0,1.08356561]
[1758139635832,0.10617934,115880.0,115870.0,1.08356561]
[1758139643581,0.10617934,115880.0,115870.0,1.49706625]
[1758139643900,0.10617934,115880.0,115870.0,0.67006497]
[1758139644109,0.10617934,115880.0,115870.0,1.10066531]
[1758139645591,0.10617934,115880.0,115870.0,0.68716467]
[1758139646003,0.10617934,115880.0,115870.0,1.10066531]
[1758139647262,0.10617934,115880.0,115870.0,1.51416595]
[1758139647855,0.10617934,115880.0,115870.0,0.68716467]
[1758139648060,0.10617934,115880.0,115870.0,1.51416595]
[1758139648510,0.10014114,115880.0,115870.0,1.51416595]
[1758139650475,1e-08,115880.0,115870.0,1.97766659]
[1758139650682,1e-08,115880.0,115870.0,1.56416595]
[1758139651698,1e-08,115880.0,115870.0,1.56216595]
[1758139651905,1e-08,115880.0,115870.0,1.56516595]
[1758139652137,1e-08,115880.0,115870.0,1.84044595]
[1758139652825,1e-08,115880.0,115870.0,2.24044595]
[1758139654982,1e-08,115880.0,115870.0,2.65394659]